[Event "*** Titled Tuesday Blitz"]
[Site "Chess.com"]
[Date "2018.04.03"]
[Round "2"]
[White "rst2003"]
[Black "RitvarsReimanis"]
[Result "0-1"]
[WhiteElo "2207"]
[BlackElo "2376"]
[TimeControl "180+2"]
[EndTime "13:22:56 PDT"]
[Termination "RitvarsReimanis won by resignation"]

1. e4 {[%clk 0:03:01.9]} 1... c5 {[%clk 0:02:58.8]} 2. Nf3 {[%clk 0:03:01.9]}
2... Nc6 {[%clk 0:03:00.2]} 3. d4 {[%clk 0:03:02.6]} 3... cxd4 {[%clk
0:03:02.1]} 4. Nxd4 {[%clk 0:03:04]} 4... Nf6 {[%clk 0:03:04]} 5. Nc3 {[%clk
0:03:04.4]} 5... d6 {[%clk 0:03:05.3]} 6. f3 {[%clk 0:03:04.3]} 6... e5 {[%clk
0:03:06.1]} 7. Nb3 {[%clk 0:03:05.5]} 7... Be6 {[%clk 0:03:07]} 8. Be3 {[%clk
0:03:04.7]} 8... Be7 {[%clk 0:03:07.9]} 9. Qd2 {[%clk 0:03:02.1]} 9... O-O
{[%clk 0:03:08.7]} 10. Nd5 {[%clk 0:02:56.6]} 10... Bxd5 {[%clk 0:03:04.3]} 11.
exd5 {[%clk 0:02:58.5]} 11... Nb8 {[%clk 0:03:02.9]} 12. Be2 {[%clk 0:02:56.8]}
12... a5 {[%clk 0:03:03.4]} 13. Rc1 {[%clk 0:02:52.7]} 13... a4 {[%clk
0:03:03.7]} 14. Na1 {[%clk 0:02:53.7]} 14... a3 {[%clk 0:03:04.3]} 15. b3 {[%clk
0:02:53.5]} 15... Na6 {[%clk 0:03:02.3]} 16. c4 {[%clk 0:02:50.9]} 16... h6
{[%clk 0:02:53]} 17. O-O {[%clk 0:02:49.7]} 17... Nh7 {[%clk 0:02:53.8]} 18. Nc2
{[%clk 0:02:45.7]} 18... Nc5 {[%clk 0:02:52.9]} 19. b4 {[%clk 0:02:44.5]} 19...
Nd7 {[%clk 0:02:53.5]} 20. c5 {[%clk 0:02:22.9]} 20... dxc5 {[%clk 0:02:52.7]}
21. d6 {[%clk 0:02:24.2]} 21... Bg5 {[%clk 0:02:53.7]} 22. bxc5 {[%clk
0:02:20.4]} 22... Nxc5 {[%clk 0:02:52.5]} 23. Rfd1 {[%clk 0:01:51.7]} 23... Ne6
{[%clk 0:02:42]} 24. Qb4 {[%clk 0:01:42.5]} 24... Qd7 {[%clk 0:02:24.1]} 25. Bb5
{[%clk 0:01:20.8]} 25... Qd8 {[%clk 0:02:18.4]} 26. Bxg5 {[%clk 0:01:20.3]}
26... Qxg5 {[%clk 0:02:14.9]} 27. d7 {[%clk 0:01:16.6]} 27... Rfd8 {[%clk
0:02:11.6]} 28. Kh1 {[%clk 0:01:02.4]} 28... Nf4 {[%clk 0:02:07.7]} 29. Ne1
{[%clk 0:01:01.1]} 29... Nf6 {[%clk 0:02:01.8]} 30. Qe7 {[%clk 0:00:41.1]} 30...
e4 {[%clk 0:01:51.2]} 31. fxe4 {[%clk 0:00:33.4]} 31... Qxb5 {[%clk 0:01:50.2]}
32. Nf3 {[%clk 0:00:13.6]} 32... Rxd7 {[%clk 0:01:50.8]} 33. Rxd7 {[%clk
0:00:11.8]} 33... Qxd7 {[%clk 0:01:52.7]} 34. Qxd7 {[%clk 0:00:12.2]} 34... Nxd7
{[%clk 0:01:53]} 35. Rc7 {[%clk 0:00:13.8]} 35... Nf6 {[%clk 0:01:52.5]} 36.
Rxb7 {[%clk 0:00:15.1]} 36... Nxe4 {[%clk 0:01:51]} 37. Rb4 {[%clk 0:00:16.1]}
37... f5 {[%clk 0:01:50.9]} 38. Nd4 {[%clk 0:00:17.2]} 38... g6 {[%clk 0:01:47]}
39. g4 {[%clk 0:00:15.1]} 39... Nd3 {[%clk 0:01:44.6]} 40. Rb7 {[%clk
0:00:11.6]} 40... Ndf2+ {[%clk 0:01:43.2]} 41. Kg2 {[%clk 0:00:12.2]} 41... Nxg4
{[%clk 0:01:45.1]} 42. Ne6 {[%clk 0:00:12]} 42... Ne5 {[%clk 0:01:42.2]} 43.
Rg7+ {[%clk 0:00:10.1]} 43... Kh8 {[%clk 0:01:42.5]} 44. Re7 {[%clk 0:00:11.6]}
44... Nc6 {[%clk 0:01:38.1]} 45. Rc7 {[%clk 0:00:11.8]} 45... Nb4 {[%clk
0:01:38.3]} 46. Nf4 {[%clk 0:00:12.4]} 46... Rg8 {[%clk 0:01:33.6]} 47. Kh3
{[%clk 0:00:11.4]} 47... Nxa2 {[%clk 0:01:28.8]} 48. Ra7 {[%clk 0:00:11.3]}
48... Nb4 {[%clk 0:01:24.8]} 49. Rxa3 {[%clk 0:00:12.1]} 49... Rg7 {[%clk
0:01:23.2]} 50. Ra8+ {[%clk 0:00:12.6]} 50... Kh7 {[%clk 0:01:24.4]} 51. Ne6
{[%clk 0:00:13.6]} 51... Re7 {[%clk 0:01:19.6]} 52. Nd4 {[%clk 0:00:13.6]} 52...
Ng5+ {[%clk 0:01:17.3]} 53. Kh4 {[%clk 0:00:14.3]} 53... Re4+ {[%clk 0:01:17.7]}
0-1

[Event "*** Titled Tuesday Blitz"]
[Site "Chess.com"]
[Date "2018.04.03"]
[Round "2"]
[White "Fins0905"]
[Black "DanielNaroditsky"]
[Result "1-0"]
[WhiteElo "2583"]
[BlackElo "2884"]
[TimeControl "180+2"]
[EndTime "13:22:59 PDT"]
[Termination "Fins0905 won by resignation"]

1. d4 {[%clk 0:03:01.9]} 1... Nf6 {[%clk 0:03:01.2]} 2. Nf3 {[%clk 0:03:02.7]}
2... g6 {[%clk 0:03:02.7]} 3. Bg5 {[%clk 0:03:03.9]} 3... Bg7 {[%clk 0:03:03.8]}
4. Nbd2 {[%clk 0:03:05]} 4... O-O {[%clk 0:03:04.4]} 5. e3 {[%clk 0:03:05]} 5...
d6 {[%clk 0:03:03.7]} 6. Bc4 {[%clk 0:03:01.6]} 6... Nbd7 {[%clk 0:02:50.5]} 7.
h3 {[%clk 0:02:59.9]} 7... e5 {[%clk 0:02:50.1]} 8. O-O {[%clk 0:02:56.4]} 8...
Qe7 {[%clk 0:02:46.7]} 9. a4 {[%clk 0:02:54.2]} 9... a5 {[%clk 0:02:42.1]} 10.
c3 {[%clk 0:02:48.2]} 10... e4 {[%clk 0:02:29.5]} 11. Ne1 {[%clk 0:02:41.2]}
11... c6 {[%clk 0:02:30.7]} 12. f3 {[%clk 0:02:31.3]} 12... d5 {[%clk
0:02:30.4]} 13. Bb3 {[%clk 0:02:29.8]} 13... h6 {[%clk 0:02:21.9]} 14. Bh4
{[%clk 0:02:26.9]} 14... exf3 {[%clk 0:02:16.2]} 15. Qxf3 {[%clk 0:02:24.5]}
15... Re8 {[%clk 0:02:15.2]} 16. Nc2 {[%clk 0:02:01.4]} 16... g5 {[%clk
0:02:15.1]} 17. Bg3 {[%clk 0:01:56.2]} 17... b6 {[%clk 0:01:35.3]} 18. Rae1
{[%clk 0:01:48.1]} 18... Ba6 {[%clk 0:01:34.9]} 19. c4 {[%clk 0:01:06.8]} 19...
Qe6 {[%clk 0:01:35.7]} 20. Na3 {[%clk 0:01:01.4]} 20... Re7 {[%clk 0:01:20.5]}
21. cxd5 {[%clk 0:00:58.6]} 21... cxd5 {[%clk 0:01:20.8]} 22. Rf2 {[%clk
0:00:59.1]} 22... Bd3 {[%clk 0:01:14.4]} 23. Nb5 {[%clk 0:00:58.5]} 23... Bxb5
{[%clk 0:01:05]} 24. axb5 {[%clk 0:01:00.4]} 24... a4 {[%clk 0:01:06.8]} 25. Ba2
{[%clk 0:01:00.8]} 25... a3 {[%clk 0:01:06.5]} 26. b4 {[%clk 0:00:56.1]} 26...
Rc8 {[%clk 0:01:07.1]} 27. e4 {[%clk 0:00:51.4]} 27... Rc2 {[%clk 0:01:05.6]}
28. Qb3 {[%clk 0:00:43.9]} 28... Rxd2 {[%clk 0:00:59.4]} 29. Rxd2 {[%clk
0:00:44.8]} 29... Nxe4 {[%clk 0:01:01.3]} 30. Qxa3 {[%clk 0:00:44.7]} 30... g4
{[%clk 0:00:51.5]} 31. h4 {[%clk 0:00:43.1]} 31... Qf5 {[%clk 0:00:44.2]} 32.
Qa8+ {[%clk 0:00:34.4]} 32... Kh7 {[%clk 0:00:43.5]} 33. Qxd5 {[%clk 0:00:27]}
33... Nxg3 {[%clk 0:00:13.7]} 34. Rxe7 {[%clk 0:00:27.9]} 34... Qf1+ {[%clk
0:00:14.5]} 35. Kh2 {[%clk 0:00:29.4]} 35... Qf4 {[%clk 0:00:16.4]} 36. Qxf7
{[%clk 0:00:23.2]} 36... Nf5+ {[%clk 0:00:14.8]} 37. Kg1 {[%clk 0:00:22.5]}
37... Nf6 {[%clk 0:00:11.5]} 38. Qxf6 {[%clk 0:00:19.3]} 38... Kh8 {[%clk
0:00:05.6]} 39. Rxg7 {[%clk 0:00:15.5]} 39... Qxd2 {[%clk 0:00:05.6]} 1-0

[Event "*** Titled Tuesday Blitz"]
[Site "Chess.com"]
[Date "2018.04.03"]
[Round "2"]
[White "Hikaru"]
[Black "BKMZBKMZ"]
[Result "1-0"]
[WhiteElo "2990"]
[BlackElo "2580"]
[TimeControl "180+2"]
[EndTime "13:23:01 PDT"]
[Termination "Hikaru won by resignation"]

1. Nc3 {[%clk 0:03:01.9]} 1... g6 {[%clk 0:02:53]} 2. e4 {[%clk 0:03:01.9]} 2...
Bg7 {[%clk 0:02:53.9]} 3. d4 {[%clk 0:03:03.8]} 3... d6 {[%clk 0:02:54.2]} 4. f4
{[%clk 0:03:01.5]} 4... Nd7 {[%clk 0:02:49.5]} 5. Nf3 {[%clk 0:02:56]} 5... c6
{[%clk 0:02:50.2]} 6. Bc4 {[%clk 0:02:56.1]} 6... b5 {[%clk 0:02:46]} 7. Bxf7+
{[%clk 0:02:39.6]} 7... Kxf7 {[%clk 0:02:47]} 8. Ng5+ {[%clk 0:02:41.5]} 8...
Ke8 {[%clk 0:02:48.3]} 9. Ne6 {[%clk 0:02:43]} 9... Qa5 {[%clk 0:02:49.2]} 10.
Nxg7+ {[%clk 0:02:40.6]} 10... Kf7 {[%clk 0:02:50.4]} 11. Nh5 {[%clk 0:02:41.4]}
11... b4 {[%clk 0:02:50.1]} 12. Ng3 {[%clk 0:02:41.4]} 12... bxc3 {[%clk
0:02:51]} 13. O-O {[%clk 0:02:43.1]} 13... Nf8 {[%clk 0:02:05.7]} 14. f5 {[%clk
0:02:32.8]} 14... Nf6 {[%clk 0:02:06]} 15. bxc3 {[%clk 0:02:32.8]} 15... Rg8
{[%clk 0:01:51.6]} 16. Qe1 {[%clk 0:02:20.6]} 16... Kg7 {[%clk 0:01:18.3]} 17.
fxg6 {[%clk 0:02:09.2]} 17... Nxg6 {[%clk 0:01:18.8]} 18. Bg5 {[%clk 0:02:09.9]}
18... Bd7 {[%clk 0:01:16.7]} 19. Qd2 {[%clk 0:01:58.1]} 19... Kh8 {[%clk
0:01:16.9]} 20. Rxf6 {[%clk 0:01:57.7]} 20... h6 {[%clk 0:00:49.3]} 21. Bh4
{[%clk 0:01:33.1]} 21... Kh7 {[%clk 0:00:50.1]} 22. Rf5 {[%clk 0:01:04.6]} 22...
Bxf5 {[%clk 0:00:28.7]} 23. Nxf5 {[%clk 0:01:06.4]} 23... Qxf5 {[%clk
0:00:30.3]} 24. exf5 {[%clk 0:01:07.3]} 24... Nxh4 {[%clk 0:00:32.2]} 25. Qf4
{[%clk 0:01:05.6]} 25... Nxg2 {[%clk 0:00:31.9]} 26. Qe4 {[%clk 0:01:06.8]}
26... Raf8 {[%clk 0:00:27.5]} 27. f6+ {[%clk 0:01:05.6]} 27... Kh8 {[%clk
0:00:18]} 28. Qxe7 {[%clk 0:01:00.9]} 28... Ne3+ {[%clk 0:00:14.5]} 29. Kh1
{[%clk 0:01:00.5]} 29... Ng4 {[%clk 0:00:13.5]} 30. Rf1 {[%clk 0:00:37.9]} 30...
Re8 {[%clk 0:00:14.8]} 31. h3 {[%clk 0:00:39.5]} 31... Rxe7 {[%clk 0:00:13.1]}
32. fxe7 {[%clk 0:00:41.4]} 32... Kg7 {[%clk 0:00:13]} 33. hxg4 {[%clk
0:00:40.5]} 33... Re8 {[%clk 0:00:14.4]} 34. Re1 {[%clk 0:00:39.8]} 34... Kf6
{[%clk 0:00:15.8]} 35. Kg2 {[%clk 0:00:40.7]} 35... Rxe7 {[%clk 0:00:16.8]} 36.
Rxe7 {[%clk 0:00:42.6]} 36... Kxe7 {[%clk 0:00:18.7]} 37. c4 {[%clk 0:00:43.8]}
37... c5 {[%clk 0:00:17.4]} 38. c3 {[%clk 0:00:44.7]} 38... Kf6 {[%clk
0:00:17.8]} 39. Kf3 {[%clk 0:00:45.7]} 39... Kg5 {[%clk 0:00:18.1]} 40. Kg3
{[%clk 0:00:46.8]} 40... a6 {[%clk 0:00:18.3]} 41. a3 {[%clk 0:00:47.6]} 41...
a5 {[%clk 0:00:19.7]} 42. a4 {[%clk 0:00:49]} 42... Kg6 {[%clk 0:00:21.1]} 43.
Kh4 {[%clk 0:00:48.8]} 43... Kg7 {[%clk 0:00:22.2]} 44. dxc5 {[%clk 0:00:46.4]}
44... dxc5 {[%clk 0:00:23.2]} 45. Kh5 {[%clk 0:00:48]} 45... Kh7 {[%clk
0:00:23.9]} 46. g5 {[%clk 0:00:49.6]} 46... hxg5 {[%clk 0:00:24.6]} 47. Kxg5
{[%clk 0:00:51.5]} 1-0

[Event "*** Titled Tuesday Blitz"]
[Site "Chess.com"]
[Date "2018.04.03"]
[Round "2"]
[White "BartoszSocko"]
[Black "Sebastian"]
[Result "0-1"]
[WhiteElo "2585"]
[BlackElo "2799"]
[TimeControl "180+2"]
[EndTime "13:23:07 PDT"]
[Termination "Sebastian won by resignation"]

1. e4 {[%clk 0:03:01.9]} 1... c5 {[%clk 0:03:00.6]} 2. Nf3 {[%clk 0:03:02.9]}
2... d6 {[%clk 0:03:01.9]} 3. d4 {[%clk 0:03:04.2]} 3... cxd4 {[%clk 0:03:03.5]}
4. Nxd4 {[%clk 0:03:05.8]} 4... Nf6 {[%clk 0:03:05]} 5. Nc3 {[%clk 0:03:07.2]}
5... a6 {[%clk 0:03:06.7]} 6. Be3 {[%clk 0:03:08.5]} 6... e5 {[%clk 0:03:07.1]}
7. Nb3 {[%clk 0:03:08.2]} 7... Be6 {[%clk 0:03:07.8]} 8. Qd2 {[%clk 0:03:09.5]}
8... Nbd7 {[%clk 0:03:08.1]} 9. O-O-O {[%clk 0:03:10.5]} 9... Be7 {[%clk
0:03:07.5]} 10. f4 {[%clk 0:03:11.7]} 10... b5 {[%clk 0:03:07.9]} 11. f5 {[%clk
0:03:07.6]} 11... Bc4 {[%clk 0:03:08.2]} 12. Kb1 {[%clk 0:03:05.9]} 12... Qc7
{[%clk 0:02:57.9]} 13. Rg1 {[%clk 0:03:05.9]} 13... b4 {[%clk 0:02:47.4]} 14.
Bxc4 {[%clk 0:02:40]} 14... Qxc4 {[%clk 0:02:47.1]} 15. Nd5 {[%clk 0:02:40.8]}
15... Nxe4 {[%clk 0:01:50.6]} 16. Qxb4 {[%clk 0:02:31.1]} 16... Qxb4 {[%clk
0:01:50.7]} 17. Nxb4 {[%clk 0:02:33]} 17... Ndf6 {[%clk 0:01:44.4]} 18. Rge1
{[%clk 0:02:24.6]} 18... h5 {[%clk 0:01:32.4]} 19. c4 {[%clk 0:02:09.3]} 19...
h4 {[%clk 0:01:30.4]} 20. Nd5 {[%clk 0:01:58.8]} 20... Nxd5 {[%clk 0:01:26.8]}
21. Rxd5 {[%clk 0:01:56]} 21... Rh5 {[%clk 0:01:23.9]} 22. Rf1 {[%clk
0:01:51.5]} 22... Rc8 {[%clk 0:01:23.1]} 23. Na5 {[%clk 0:01:45.5]} 23... Bg5
{[%clk 0:01:20.7]} 24. Rf3 {[%clk 0:01:15.7]} 24... Ke7 {[%clk 0:01:15.7]} 25.
Kc2 {[%clk 0:00:58.3]} 25... Bxe3 {[%clk 0:01:13.2]} 26. Rxe3 {[%clk 0:00:59.3]}
26... Nf6 {[%clk 0:01:14.8]} 27. Rd2 {[%clk 0:00:55.6]} 27... Rxf5 {[%clk
0:01:16.4]} 28. b4 {[%clk 0:00:55]} 28... Rf4 {[%clk 0:01:04.4]} 29. Kb3 {[%clk
0:00:53.6]} 29... Ng4 {[%clk 0:01:04.1]} 30. Red3 {[%clk 0:00:50.7]} 30... e4
{[%clk 0:00:49.7]} 31. Rd4 {[%clk 0:00:38.8]} 31... Nf6 {[%clk 0:00:45.9]} 32.
Nb7 {[%clk 0:00:34.2]} 32... Rc6 {[%clk 0:00:31.5]} 33. a4 {[%clk 0:00:21.1]}
33... g5 {[%clk 0:00:19.7]} 34. a5 {[%clk 0:00:21.4]} 34... e3 {[%clk
0:00:20.2]} 35. Rxf4 {[%clk 0:00:18.1]} 35... gxf4 {[%clk 0:00:22.1]} 36. Rd1
{[%clk 0:00:18.9]} 36... Ne4 {[%clk 0:00:20.4]} 37. b5 {[%clk 0:00:18.6]} 37...
Rc8 {[%clk 0:00:20]} 38. bxa6 {[%clk 0:00:18.1]} 38... Ra8 {[%clk 0:00:21.1]}
39. Kc2 {[%clk 0:00:13.2]} 39... Rxa6 {[%clk 0:00:21.5]} 40. Rb1 {[%clk
0:00:12.2]} 40... Kd7 {[%clk 0:00:20.5]} 41. Kd3 {[%clk 0:00:09.3]} 41... f5
{[%clk 0:00:21.5]} 42. Ke2 {[%clk 0:00:09.7]} 42... Nc3+ {[%clk 0:00:21.6]} 0-1

[Event "*** Titled Tuesday Blitz"]
[Site "Chess.com"]
[Date "2018.04.03"]
[Round "2"]
[White "FMJoseHerrera"]
[Black "murmah2003"]
[Result "0-1"]
[WhiteElo "2475"]
[BlackElo "2440"]
[TimeControl "180+2"]
[EndTime "13:23:14 PDT"]
[Termination "murmah2003 won by resignation"]

1. Nf3 {[%clk 0:03:01.9]} 1... Nf6 {[%clk 0:03:00.8]} 2. g3 {[%clk 0:03:02.6]}
2... g6 {[%clk 0:03:01.6]} 3. Bg2 {[%clk 0:03:03.9]} 3... Bg7 {[%clk 0:03:02.3]}
4. O-O {[%clk 0:03:05.1]} 4... O-O {[%clk 0:03:03.9]} 5. d3 {[%clk 0:03:06.1]}
5... d5 {[%clk 0:03:03.7]} 6. c3 {[%clk 0:03:07.4]} 6... c5 {[%clk 0:03:03.5]}
7. a3 {[%clk 0:03:08.8]} 7... a5 {[%clk 0:02:51.1]} 8. Be3 {[%clk 0:03:07.8]}
8... b6 {[%clk 0:02:46.3]} 9. h3 {[%clk 0:03:08.1]} 9... Nc6 {[%clk 0:02:43.1]}
10. Qc1 {[%clk 0:03:06.3]} 10... Re8 {[%clk 0:02:41.9]} 11. Bh6 {[%clk
0:03:07.4]} 11... Bh8 {[%clk 0:02:42.7]} 12. Re1 {[%clk 0:03:07.8]} 12... Ba6
{[%clk 0:02:35.7]} 13. Nbd2 {[%clk 0:03:00.2]} 13... Qd7 {[%clk 0:02:30.3]} 14.
c4 {[%clk 0:02:48.4]} 14... dxc4 {[%clk 0:02:09.8]} 15. Nxc4 {[%clk 0:02:47.9]}
15... Nd5 {[%clk 0:02:10.9]} 16. Nfd2 {[%clk 0:02:34.9]} 16... Rab8 {[%clk
0:02:08.1]} 17. e4 {[%clk 0:02:07.8]} 17... Nc7 {[%clk 0:02:05.6]} 18. e5 {[%clk
0:01:48.7]} 18... Nd4 {[%clk 0:01:54.5]} 19. Kh2 {[%clk 0:01:39.4]} 19... Nce6
{[%clk 0:01:46.3]} 20. b4 {[%clk 0:01:34.6]} 20... Nf5 {[%clk 0:01:44.1]} 21.
Be3 {[%clk 0:01:01.9]} 21... Qxd3 {[%clk 0:01:28.9]} 22. Be4 {[%clk 0:00:54.4]}
22... Qd8 {[%clk 0:01:03.9]} 23. Bxf5 {[%clk 0:00:51.2]} 23... gxf5 {[%clk
0:01:05.8]} 24. Qb1 {[%clk 0:00:44.4]} 24... Qd5 {[%clk 0:00:55.9]} 25. b5
{[%clk 0:00:43.6]} 25... Bb7 {[%clk 0:00:53.8]} 26. Rg1 {[%clk 0:00:35]} 26...
Bxe5 {[%clk 0:00:45.5]} 27. Nxe5 {[%clk 0:00:35.8]} 27... Qxe5 {[%clk
0:00:46.5]} 28. Nc4 {[%clk 0:00:37.5]} 28... Qd5 {[%clk 0:00:41.4]} 29. Nxb6
{[%clk 0:00:38.7]} 29... Qf3 {[%clk 0:00:42.9]} 30. Nc4 {[%clk 0:00:38.4]} 30...
Be4 {[%clk 0:00:22]} 31. Qb2 {[%clk 0:00:32.7]} 31... Qh5 {[%clk 0:00:16.8]} 32.
a4 {[%clk 0:00:32]} 32... f6 {[%clk 0:00:13.3]} 33. Nd2 {[%clk 0:00:29.2]} 33...
Bd5 {[%clk 0:00:11.5]} 34. Qc3 {[%clk 0:00:28.5]} 34... Kh8 {[%clk 0:00:11.2]}
35. Rad1 {[%clk 0:00:28.4]} 35... Rg8 {[%clk 0:00:11.3]} 36. Nc4 {[%clk
0:00:29.2]} 36... Ba8 {[%clk 0:00:11.5]} 37. Nxa5 {[%clk 0:00:29.8]} 37... f4
{[%clk 0:00:11.7]} 38. Bxc5 {[%clk 0:00:22.3]} 38... fxg3+ {[%clk 0:00:11.5]}
39. fxg3 {[%clk 0:00:24.2]} 39... Qe2+ {[%clk 0:00:12]} 40. Bf2 {[%clk
0:00:11.2]} 40... Qxf2+ {[%clk 0:00:12]} 0-1

[Event "*** Titled Tuesday Blitz"]
[Site "Chess.com"]
[Date "2018.04.03"]
[Round "2"]
[White "kjzsdu"]
[Black "simplerXiao"]
[Result "1/2-1/2"]
[WhiteElo "2428"]
[BlackElo "2466"]
[TimeControl "180+2"]
[EndTime "13:23:14 PDT"]
[Termination "Game drawn by agreement"]

1. e4 {[%clk 0:03:01.8]} 1... c5 {[%clk 0:02:44.7]} 2. Nf3 {[%clk 0:03:02.2]}
2... e6 {[%clk 0:02:45.6]} 3. d4 {[%clk 0:03:01.1]} 3... cxd4 {[%clk 0:02:47.5]}
4. Nxd4 {[%clk 0:03:02.6]} 4... Nc6 {[%clk 0:02:48.1]} 5. Nc3 {[%clk 0:03:02.8]}
5... Qc7 {[%clk 0:02:47.2]} 6. Be2 {[%clk 0:03:02.9]} 6... a6 {[%clk 0:02:47.1]}
7. Be3 {[%clk 0:03:02.9]} 7... Bb4 {[%clk 0:02:46.8]} 8. O-O {[%clk 0:02:55]}
8... Nf6 {[%clk 0:02:38.3]} 9. Na4 {[%clk 0:02:54.5]} 9... Nxd4 {[%clk
0:02:09.6]} 10. Qxd4 {[%clk 0:02:13.4]} 10... Bd6 {[%clk 0:02:08.4]} 11. f4
{[%clk 0:02:10.4]} 11... e5 {[%clk 0:02:02.5]} 12. Qb6 {[%clk 0:01:55.2]} 12...
exf4 {[%clk 0:01:57.6]} 13. Qxc7 {[%clk 0:01:55.8]} 13... Bxc7 {[%clk
0:01:58.1]} 14. Bxf4 {[%clk 0:01:57.1]} 14... Bxf4 {[%clk 0:01:55.9]} 15. Rxf4
{[%clk 0:01:58.9]} 15... b5 {[%clk 0:01:55.9]} 16. Nc3 {[%clk 0:01:32.4]} 16...
d6 {[%clk 0:01:48.7]} 17. Rd1 {[%clk 0:01:30.8]} 17... Ke7 {[%clk 0:01:45.1]}
18. a4 {[%clk 0:01:21.1]} 18... bxa4 {[%clk 0:01:40.3]} 19. Rxf6 {[%clk
0:01:10.9]} 19... Kxf6 {[%clk 0:01:30.6]} 20. Rxd6+ {[%clk 0:01:10.1]} 20... Be6
{[%clk 0:01:30.2]} 21. Nxa4 {[%clk 0:01:02.5]} 21... a5 {[%clk 0:01:29.1]} 22.
Bd3 {[%clk 0:00:52.5]} 22... Rhd8 {[%clk 0:01:27.2]} 23. Rb6 {[%clk 0:00:51.2]}
23... Rd4 {[%clk 0:01:21.6]} 24. Nc3 {[%clk 0:00:47.4]} 24... a4 {[%clk
0:01:12.3]} 25. Kf2 {[%clk 0:00:36.1]} 25... Rc8 {[%clk 0:00:54.1]} 26. Ke3
{[%clk 0:00:34.4]} 26... Rcd8 {[%clk 0:00:47.7]} 27. Ra6 {[%clk 0:00:30.9]}
27... a3 {[%clk 0:00:26]} 28. Rxa3 {[%clk 0:00:25.9]} 28... Rb4 {[%clk
0:00:26.4]} 29. b3 {[%clk 0:00:25.1]} 29... Rc8 {[%clk 0:00:25.5]} 30. Nb5
{[%clk 0:00:20.6]} 30... Rxb5 {[%clk 0:00:22.5]} 31. Bxb5 {[%clk 0:00:20.9]}
31... Rxc2 {[%clk 0:00:24.1]} 32. Be2 {[%clk 0:00:20.2]} 32... Rc3+ {[%clk
0:00:24.8]} 33. Kd4 {[%clk 0:00:20.8]} 33... Rxb3 {[%clk 0:00:25.6]} 34. Rxb3
{[%clk 0:00:22]} 34... Bxb3 {[%clk 0:00:27.1]} 35. e5+ {[%clk 0:00:23.1]} 35...
Ke6 {[%clk 0:00:26.8]} 36. Bg4+ {[%clk 0:00:22.6]} 36... f5 {[%clk 0:00:26.4]}
37. exf6+ {[%clk 0:00:23.4]} 37... Kxf6 {[%clk 0:00:27.6]} 38. Ke3 {[%clk
0:00:24.3]} 38... Kg5 {[%clk 0:00:28.5]} 39. Be2 {[%clk 0:00:24.5]} 39... Bd5
{[%clk 0:00:27.8]} 40. Kf2 {[%clk 0:00:24.6]} 40... h5 {[%clk 0:00:28.7]} 41. g3
{[%clk 0:00:23.7]} 41... h4 {[%clk 0:00:29.8]} 42. Ke3 {[%clk 0:00:22.3]} 42...
hxg3 {[%clk 0:00:30.5]} 43. hxg3 {[%clk 0:00:22.7]} 43... Be6 {[%clk 0:00:32.1]}
44. Kf2 {[%clk 0:00:22.6]} 44... Bg4 {[%clk 0:00:33.1]} 45. Bc4 {[%clk
0:00:23.5]} 45... Bf5 {[%clk 0:00:33.3]} 46. Ke3 {[%clk 0:00:22.3]} 46... Kg4
{[%clk 0:00:33.7]} 47. Kf2 {[%clk 0:00:23.3]} 47... Be4 {[%clk 0:00:34.2]} 48.
Be6+ {[%clk 0:00:23.4]} 48... Bf5 {[%clk 0:00:35.3]} 49. Bd5 {[%clk 0:00:24.4]}
49... g6 {[%clk 0:00:34.8]} 50. Bf3+ {[%clk 0:00:24.4]} 50... Kg5 {[%clk
0:00:36]} 51. Ke3 {[%clk 0:00:24.9]} 51... Bg4 {[%clk 0:00:37.2]} 52. Be4 {[%clk
0:00:25.8]} 52... Bf5 {[%clk 0:00:38.3]} 1/2-1/2

[Event "*** Titled Tuesday Blitz"]
[Site "Chess.com"]
[Date "2018.04.03"]
[Round "2"]
[White "SantoBlue"]
[Black "anon102030"]
[Result "1-0"]
[WhiteElo "2625"]
[BlackElo "2721"]
[TimeControl "180+2"]
[EndTime "13:23:15 PDT"]
[Termination "SantoBlue won on time"]

1. Nf3 {[%clk 0:03:00.9]} 1... d6 {[%clk 0:03:00.5]} 2. e4 {[%clk 0:03:01.1]}
2... e5 {[%clk 0:02:58.7]} 3. d4 {[%clk 0:03:01.9]} 3... exd4 {[%clk 0:02:59.6]}
4. Nxd4 {[%clk 0:03:02.4]} 4... g6 {[%clk 0:03:00.5]} 5. Nc3 {[%clk 0:03:03]}
5... Bg7 {[%clk 0:03:01.8]} 6. Bc4 {[%clk 0:03:02.4]} 6... Nc6 {[%clk
0:03:01.3]} 7. Be3 {[%clk 0:03:01.6]} 7... Nf6 {[%clk 0:02:59.7]} 8. h3 {[%clk
0:02:56.3]} 8... O-O {[%clk 0:02:58]} 9. O-O {[%clk 0:02:54.2]} 9... Re8 {[%clk
0:02:56.8]} 10. Bd3 {[%clk 0:02:51.7]} 10... Ne5 {[%clk 0:02:55]} 11. Be2 {[%clk
0:02:50.1]} 11... Nc6 {[%clk 0:02:52.4]} 12. Bf3 {[%clk 0:02:36.7]} 12... Ne5
{[%clk 0:02:51]} 13. Be2 {[%clk 0:02:37.7]} 13... Nc6 {[%clk 0:02:51.7]} 14. Bd3
{[%clk 0:02:12.3]} 14... Ne5 {[%clk 0:02:50.2]} 15. Bb5 {[%clk 0:02:09.2]} 15...
Bd7 {[%clk 0:02:49.4]} 16. Qe2 {[%clk 0:01:57.8]} 16... a6 {[%clk 0:02:46.8]}
17. Bxd7 {[%clk 0:01:57.7]} 17... Qxd7 {[%clk 0:02:48.7]} 18. Rad1 {[%clk
0:01:57.2]} 18... Nc6 {[%clk 0:02:36]} 19. Qd3 {[%clk 0:01:49.3]} 19... Nb4
{[%clk 0:02:28.1]} 20. Qd2 {[%clk 0:01:47.1]} 20... Nxe4 {[%clk 0:01:55.5]} 21.
Nxe4 {[%clk 0:01:47.4]} 21... Rxe4 {[%clk 0:01:57.4]} 22. Qxb4 {[%clk
0:01:42.6]} 22... c5 {[%clk 0:01:58.7]} 23. Qc3 {[%clk 0:01:36.3]} 23... cxd4
{[%clk 0:01:58.2]} 24. Bxd4 {[%clk 0:01:37]} 24... Rc8 {[%clk 0:01:58.8]} 25.
Bxg7 {[%clk 0:01:37.4]} 25... Rxc3 {[%clk 0:01:59.4]} 26. Bxc3 {[%clk
0:01:39.3]} 26... Re2 {[%clk 0:01:59.5]} 27. Rd3 {[%clk 0:01:39]} 27... Rxc2
{[%clk 0:01:54.5]} 28. Rfd1 {[%clk 0:01:39.6]} 28... Qf5 {[%clk 0:01:54.5]} 29.
Rf3 {[%clk 0:01:34.5]} 29... Qd7 {[%clk 0:01:33.1]} 30. Rfd3 {[%clk 0:01:26.2]}
30... Qf5 {[%clk 0:01:24.3]} 31. Rf3 {[%clk 0:01:27.1]} 31... Qc5 {[%clk
0:01:21.1]} 32. Re3 {[%clk 0:01:22.9]} 32... f6 {[%clk 0:00:58.4]} 33. Rde1
{[%clk 0:01:07.2]} 33... Kg7 {[%clk 0:00:47.7]} 34. Rf3 {[%clk 0:01:00.3]} 34...
d5 {[%clk 0:00:31.2]} 35. Bxf6+ {[%clk 0:01:00]} 35... Kh6 {[%clk 0:00:31.9]}
36. h4 {[%clk 0:00:52.5]} 36... d4 {[%clk 0:00:18.8]} 37. Bg5+ {[%clk 0:00:53]}
37... Kh5 {[%clk 0:00:18.8]} 38. Rf4 {[%clk 0:00:53.4]} 38... Qc8 {[%clk
0:00:03.1]} 39. Ree4 {[%clk 0:00:51.5]} 39... d3 {[%clk 0:00:02.8]} 40. g4+
{[%clk 0:00:48.6]} 40... Qxg4+ {[%clk 0:00:03.9]} 41. Rxg4 {[%clk 0:00:50.5]}
41... d2 {[%clk 0:00:04.9]} 42. Bxd2 {[%clk 0:00:50.2]} 42... Rxd2 {[%clk
0:00:06.1]} 43. Rg5+ {[%clk 0:00:51.5]} 43... Kh6 {[%clk 0:00:06.9]} 44. Rb4
{[%clk 0:00:52]} 44... b5 {[%clk 0:00:08.2]} 45. a4 {[%clk 0:00:53.1]} 45...
bxa4 {[%clk 0:00:08.6]} 46. Rxa4 {[%clk 0:00:55]} 46... Rd4 {[%clk 0:00:07]} 47.
Rxd4 {[%clk 0:00:55.9]} 1-0